fUST/lending_fUST_20260615
["ID","MTS","AMOUNT","RATE_DAILY","PERIOD"]
[425085280,1781475047000,-500.0,0.00019452,2]
[425085268,1781475047000,-500.0,0.00019452,2]
[425085271,1781475047000,-500.0,0.00019452,2]
[425085353,1781475048000,-500.0,0.00019726,2]
[425085355,1781475048000,-504.84017903,0.00019726,2]
[425085350,1781475048000,-500.0,0.00019726,2]
[425085357,1781475048000,-500.0,0.00019726,2]
[425085354,1781475048000,-420.97045796,0.00019726,2]
[425085356,1781475048000,-500.0,0.00019726,2]
[425085358,1781475048000,-642.06,0.00019726,2]
[425085351,1781475048000,-500.0,0.00019726,2]
[425085360,1781475048000,-252.27632289,0.00019726,2]
[425085348,1781475048000,-536.2,0.00019726,2]
[425085349,1781475048000,-500.0,0.00019726,2]
[425085359,1781475048000,-500.0,0.00019726,2]
[425085352,1781475048000,-500.0,0.00019726,2]
[425085362,1781475048000,-500.0,0.00019726,2]
[425085377,1781475048000,-500.0,0.00019726,2]
[425085373,1781475048000,-765.65,0.00019726,2]
[425085364,1781475048000,-735.59,0.00019726,2]
[425085367,1781475048000,-507.16324365,0.00019726,2]
[425085365,1781475048000,-510.51,0.00019726,2]
[425085366,1781475048000,-500.0,0.00019726,2]
[425085363,1781475048000,-500.0,0.00019726,2]
[425085368,1781475048000,-500.0,0.00019726,2]
[425085370,1781475048000,-500.0,0.00019726,2]
[425085371,1781475048000,-500.0,0.00019726,2]
[425085361,1781475048000,-500.0,0.00019726,2]
[425085369,1781475048000,-500.0,0.00019726,2]
[425085376,1781475048000,-500.0,0.00019726,2]
[425085382,1781475048000,-500.0,0.00019726,2]
[425085347,1781475048000,-500.0,0.00019726,2]
[425085372,1781475048000,-500.0,0.00019726,2]
[425085336,1781475048000,-500.0,0.00019726,2]
[425085315,1781475048000,-1257.1704,0.00019726,2]
[425085340,1781475048000,-1320.96,0.00019726,2]
[425085319,1781475048000,-500.0,0.00019726,2]
[425085320,1781475048000,-517.003679,0.00019726,2]
[425085321,1781475048000,-500.0,0.00019726,2]
[425085316,1781475048000,-1883.42,0.00019726,2]
[425085317,1781475048000,-4166.66,0.00019726,2]
[425085318,1781475048000,-500.0,0.00019726,2]
[425085314,1781475048000,-871.13244848,0.00019726,2]
[425085322,1781475048000,-587.76992217,0.00019726,2]
[425085333,1781475048000,-500.0,0.00019726,2]
[425085325,1781475048000,-353.15108637,0.00019726,2]
[425085326,1781475048000,-500.0,0.00019726,2]
[425085324,1781475048000,-500.0,0.00019726,2]
[425085331,1781475048000,-500.0,0.00019726,2]
[425085330,1781475048000,-500.0,0.00019726,2]
[425085328,1781475048000,-500.0,0.00019726,2]
[425085327,1781475048000,-778.69,0.00019726,2]
[425085323,1781475048000,-500.0,0.00019726,2]
[425085334,1781475048000,-507.11,0.00019726,2]
[425085329,1781475048000,-500.0,0.00019726,2]
[425085332,1781475048000,-500.0,0.00019726,2]
[425085337,1781475048000,-500.0,0.00019726,2]
[425085335,1781475048000,-730.65,0.00019726,2]
[425085344,1781475048000,-591.39,0.00019726,2]
[425085343,1781475048000,-500.0,0.00019726,2]
[425085341,1781475048000,-500.0,0.00019726,2]
[425085345,1781475048000,-500.0,0.00019726,2]
[425085338,1781475048000,-506.92592085,0.00019726,2]
[425085346,1781475048000,-500.0,0.00019726,2]
[425085339,1781475048000,-1246.9,0.00019726,2]
[425085342,1781475048000,-500.0,0.00019726,2]
[425085386,1781475048000,-844.18,0.00019726,2]
[425085374,1781475048000,-500.0,0.00019726,2]
[425085375,1781475048000,-500.0,0.00019726,2]
[425085415,1781475048000,-341.23494941,0.00019726,2]
[425085417,1781475048000,-508.06067828,0.00019726,2]
[425085422,1781475048000,-500.0,0.00019726,2]
[425085424,1781475048000,-505.50884606,0.00019726,2]
[425085419,1781475048000,-500.0,0.00019726,2]
[425085421,1781475048000,-500.0,0.00019726,2]
[425085418,1781475048000,-1000.0,0.00019726,2]
[425085416,1781475048000,-506.01255067,0.00019726,2]
[425085420,1781475048000,-2879.16,0.00019726,2]
[425085427,1781475048000,-500.0,0.00019726,2]
[425085423,1781475048000,-509.57578728,0.00019726,2]
[425085426,1781475048000,-945.68,0.00019726,2]
[425085425,1781475048000,-500.0,0.00019726,2]
[425085429,1781475048000,-505.28136694,0.00019726,2]
[425085411,1781475048000,-500.0,0.00019726,2]
[425085431,1781475048000,-509.96715364,0.00019726,2]
[425085439,1781475048000,-506.17235767,0.00019726,2]
[425085440,1781475048000,-1307.91,0.00019726,2]
[425085430,1781475048000,-500.0,0.00019726,2]
[425085435,1781475048000,-504.12995431,0.00019726,2]
[425085434,1781475048000,-500.0,0.00019726,2]
[425085436,1781475048000,-953.89,0.00019726,2]
[425085433,1781475048000,-500.0,0.00019726,2]
[425085438,1781475048000,-506.82295824,0.00019726,2]
[425085432,1781475048000,-500.0,0.00019726,2]
[425085437,1781475048000,-500.0,0.00019726,2]
[425085442,1781475048000,-500.0,0.00019726,2]
[425085443,1781475048000,-500.0,0.00019726,2]
[425085378,1781475048000,-500.0,0.00019726,2]
[425085444,1781475048000,-1272.44,0.00019726,2]
[425085428,1781475048000,-500.0,0.00019726,2]
[425085412,1781475048000,-500.0,0.00019726,2]
[425085441,1781475048000,-364.38175051,0.00019726,2]
[425085409,1781475048000,-500.0,0.00019726,2]
[425085410,1781475048000,-500.0,0.00019726,2]
[425085387,1781475048000,-500.0,0.00019726,2]
[425085380,1781475048000,-500.0,0.00019726,2]
[425085385,1781475048000,-500.0,0.00019726,2]
[425085383,1781475048000,-500.0,0.00019726,2]
[425085384,1781475048000,-500.0,0.00019726,2]
[425085379,1781475048000,-500.0,0.00019726,2]
[425085388,1781475048000,-509.0660878,0.00019726,2]
[425085390,1781475048000,-1996.52,0.00019726,2]
[425085389,1781475048000,-500.0,0.00019726,2]
[425085391,1781475048000,-500.0,0.00019726,2]
[425085399,1781475048000,-766.46,0.00019726,2]
[425085392,1781475048000,-500.0,0.00019726,2]
[425085393,1781475048000,-500.0,0.00019726,2]
[425085397,1781475048000,-500.0,0.00019726,2]
[425085381,1781475048000,-500.0,0.00019726,2]
[425085400,1781475048000,-1192.43,0.00019726,2]
[425085408,1781475048000,-500.0,0.00019726,2]
[425085407,1781475048000,-500.0,0.00019726,2]
[425085405,1781475048000,-500.0,0.00019726,2]
[425085406,1781475048000,-1491.05,0.00019726,2]
[425085394,1781475048000,-502.90998937,0.00019726,2]
[425085402,1781475048000,-1424.11,0.00019726,2]
[425085404,1781475048000,-500.0,0.00019726,2]
[425085414,1781475048000,-500.0,0.00019726,2]
[425085413,1781475048000,-500.0,0.00019726,2]
[425085401,1781475048000,-500.0,0.00019726,2]
[425085395,1781475048000,-500.0,0.00019726,2]
[425085398,1781475048000,-500.0,0.00019726,2]
[425085396,1781475048000,-505.03604134,0.00019726,2]
[425085403,1781475048000,-500.0,0.00019726,2]
[425085491,1781475049000,-500.0,0.00019726,2]
[425085484,1781475049000,-514.29458091,0.00019726,2]
[425085492,1781475049000,-500.0,0.00019726,2]
[425085485,1781475049000,-500.0,0.00019726,2]
[425085487,1781475049000,-1457.5,0.00019726,2]
[425085478,1781475049000,-500.0,0.00019726,2]
[425085488,1781475049000,-500.0,0.00019726,2]
[425085481,1781475049000,-622.81,0.00019726,2]
[425085480,1781475049000,-1492.4,0.00019726,2]
[425085477,1781475049000,-500.0,0.00019726,2]
[425085479,1781475049000,-813.37,0.00019726,2]
[425085490,1781475049000,-500.0,0.00019726,2]
[425085482,1781475049000,-2485.05,0.00019726,2]
[425085497,1781475049000,-505.48238218,0.00019726,2]
[425085489,1781475049000,-500.0,0.00019726,2]
[425085483,1781475049000,-848.61,0.00019726,2]
[425085493,1781475049000,-2246.14,0.00019726,2]
[425085486,1781475049000,-1147.53,0.00019726,2]
[425085495,1781475049000,-500.0,0.00019726,2]
[425085498,1781475049000,-499.48822367,0.00019726,2]
[425085503,1781475049000,-512.00622325,0.00019726,2]
[425085502,1781475049000,-500.0,0.00019726,2]
[425085500,1781475049000,-1641.49,0.00019726,2]
[425085504,1781475049000,-500.0,0.00019726,2]
[425085507,1781475049000,-2190.75,0.00019726,2]
[425085506,1781475049000,-500.0,0.00019726,2]
[425085474,1781475049000,-500.0,0.00019726,2]
[425085494,1781475049000,-542.77,0.00019726,2]
[425085475,1781475049000,-508.43726579,0.00019726,2]
[425085456,1781475049000,-513.15784363,0.00019726,2]
[425085471,1781475049000,-500.0,0.00019726,2]
[425085496,1781475049000,-1087.24,0.00019726,2]
[425085451,1781475049000,-500.0,0.00019726,2]
[425085453,1781475049000,-500.0,0.00019726,2]
[425085450,1781475049000,-500.0,0.00019726,2]
[425085452,1781475049000,-500.0,0.00019726,2]
[425085445,1781475049000,-610.53,0.00019726,2]
[425085448,1781475049000,-507.43024099,0.00019726,2]
[425085449,1781475049000,-504.26,0.00019726,2]
[425085447,1781475049000,-356.5591182,0.00019726,2]
[425085446,1781475049000,-500.0,0.00019726,2]
[425085455,1781475049000,-500.0,0.00019726,2]
[425085465,1781475049000,-500.0,0.00019726,2]
[425085466,1781475049000,-500.0,0.00019726,2]
[425085469,1781475049000,-506.92711022,0.00019726,2]
[425085467,1781475049000,-558.87260267,0.00019726,2]
[425085454,1781475049000,-1027.97,0.00019726,2]
[425085458,1781475049000,-500.0,0.00019726,2]
[425085460,1781475049000,-500.0,0.00019726,2]
[425085461,1781475049000,-507.37600273,0.00019726,2]
[425085459,1781475049000,-746.34,0.00019726,2]
[425085463,1781475049000,-500.0,0.00019726,2]
[425085462,1781475049000,-918.06,0.00019726,2]
[425085464,1781475049000,-500.0,0.00019726,2]
[425085468,1781475049000,-543.63,0.00019726,2]
[425085470,1781475049000,-1277.78,0.00019726,2]
[425085473,1781475049000,-161.36053673,0.00019726,2]
[425085476,1781475049000,-500.0,0.00019726,2]
[425085472,1781475049000,-500.0,0.00019726,2]
[425085457,1781475049000,-768.62,0.00019726,2]
[425085499,1781475049000,-500.0,0.00019726,2]
[425085565,1781475049000,-500.0,0.00019726,2]
[425085501,1781475049000,-507.7204772,0.00019726,2]
[425085538,1781475049000,-725.66,0.00019726,2]
[425085553,1781475049000,-5245.53,0.00019726,2]
[425085552,1781475049000,-500.0,0.00019726,2]
[425085542,1781475049000,-509.22132971,0.00019726,2]
[425085544,1781475049000,-500.0,0.00019726,2]
[425085541,1781475049000,-659.92,0.00019726,2]
[425085547,1781475049000,-507.36627683,0.00019726,2]
[425085548,1781475049000,-500.0,0.00019726,2]
[425085543,1781475049000,-500.0,0.00019726,2]
[425085546,1781475049000,-508.49993446,0.00019726,2]
[425085545,1781475049000,-507.54411846,0.00019726,2]
[425085549,1781475049000,-1294.87,0.00019726,2]
[425085550,1781475049000,-500.0,0.00019726,2]
[425085540,1781475049000,-500.0,0.00019726,2]
[425085551,1781475049000,-500.0,0.00019726,2]
[425085555,1781475049000,-500.0,0.00019726,2]
[425085556,1781475049000,-500.0,0.00019726,2]
[425085563,1781475049000,-1387.05,0.00019726,2]
[425085564,1781475049000,-500.0,0.00019726,2]
[425085557,1781475049000,-500.0,0.00019726,2]
[425085560,1781475049000,-720.52,0.00019726,2]
[425085566,1781475049000,-315.61752222,0.00019726,2]
[425085568,1781475049000,-500.0,0.00019726,2]
[425085559,1781475049000,-782.01,0.00019726,2]
[425085558,1781475049000,-500.0,0.00019726,2]
[425085561,1781475049000,-500.0,0.00019726,2]
[425085567,1781475049000,-500.0,0.00019726,2]
[425085505,1781475049000,-500.0,0.00019726,2]
[425085554,1781475049000,-2405.11,0.00019726,2]
[425085539,1781475049000,-858.74,0.00019726,2]
[425085562,1781475049000,-500.0,0.00019726,2]
[425085536,1781475049000,-505.40020779,0.00019726,2]
[425085537,1781475049000,-500.0,0.00019726,2]
[425085521,1781475049000,-500.0,0.00019726,2]
[425085520,1781475049000,-500.0,0.00019726,2]
[425085519,1781475049000,-2319.38,0.00019726,2]
[425085509,1781475049000,-500.0,0.00019726,2]
[425085508,1781475049000,-500.0,0.00019726,2]
[425085512,1781475049000,-4321.79,0.00019726,2]
[425085513,1781475049000,-1767.89,0.00019726,2]
[425085515,1781475049000,-500.0,0.00019726,2]
[425085517,1781475049000,-500.0,0.00019726,2]
[425085510,1781475049000,-500.0,0.00019726,2]
[425085514,1781475049000,-627.54,0.00019726,2]
[425085518,1781475049000,-500.0,0.00019726,2]
[425085516,1781475049000,-1689.21,0.00019726,2]
[425085511,1781475049000,-5565.56,0.00019726,2]
[425085527,1781475049000,-5521.74,0.00019726,2]
[425085534,1781475049000,-1000.0,0.00019726,2]
[425085522,1781475049000,-500.0,0.00019726,2]
[425085535,1781475049000,-500.0,0.00019726,2]
[425085533,1781475049000,-510.65048149,0.00019726,2]
[425085523,1781475049000,-500.0,0.00019726,2]
[425085524,1781475049000,-500.0,0.00019726,2]
[425085528,1781475049000,-500.0,0.00019726,2]
[425085526,1781475049000,-502.21022255,0.00019726,2]
[425085530,1781475049000,-3228.24,0.00019726,2]
[425085529,1781475049000,-305.92790411,0.00019726,2]
[425085531,1781475049000,-500.0,0.00019726,2]
[425085525,1781475049000,-2900.06,0.00019726,2]
[425085532,1781475049000,-774.35,0.00019726,2]
[425085594,1781475050000,-500.0,0.00019726,2]
[425085603,1781475050000,-500.0,0.00019726,2]
[425085586,1781475050000,-5315.12,0.00019726,2]
[425085593,1781475050000,-500.0,0.00019726,2]
[425085605,1781475050000,-542.93,0.00019726,2]
[425085595,1781475050000,-500.0,0.00019726,2]
[425085604,1781475050000,-500.0,0.00019726,2]
[425085597,1781475050000,-3543.09,0.00019726,2]
[425085599,1781475050000,-500.0,0.00019726,2]
[425085607,1781475050000,-2235.77,0.00019726,2]
[425085600,1781475050000,-513.7222768,0.00019726,2]
[425085598,1781475050000,-557.92884089,0.00019726,2]
[425085602,1781475050000,-8039.82,0.00019726,2]
[425085613,1781475050000,-500.0,0.00019726,2]
[425085612,1781475050000,-671.46,0.00019726,2]
[425085606,1781475050000,-500.0,0.00019726,2]
[425085591,1781475050000,-500.0,0.00019726,2]
[425085618,1781475050000,-731.03,0.00019726,2]
[425085601,1781475050000,-508.96216643,0.00019726,2]
[425085588,1781475050000,-500.0,0.00019726,2]
[425085574,1781475050000,-500.0,0.00019726,2]
[425085583,1781475050000,-500.0,0.00019726,2]
[425085611,1781475050000,-3396.21,0.00019726,2]
[425085569,1781475050000,-500.0,0.00019726,2]
[425085571,1781475050000,-500.0,0.00019726,2]
[425085578,1781475050000,-1737.62,0.00019726,2]
[425085570,1781475050000,-500.0,0.00019726,2]
[425085572,1781475050000,-980.64,0.00019726,2]
[425085573,1781475050000,-1500.78,0.00019726,2]
[425085575,1781475050000,-2248.5,0.00019726,2]
[425085576,1781475050000,-513.90746365,0.00019726,2]
[425085577,1781475050000,-500.0,0.00019726,2]
[425085585,1781475050000,-500.0,0.00019726,2]
[425085589,1781475050000,-3473.08,0.00019726,2]
[425085584,1781475050000,-500.0,0.00019726,2]
[425085590,1781475050000,-500.0,0.00019726,2]
[425085579,1781475050000,-31768.31,0.00019726,2]
[425085587,1781475050000,-500.0,0.00019726,2]
[425085582,1781475050000,-500.0,0.00019726,2]
[425085580,1781475050000,-500.0,0.00019726,2]
[425085581,1781475050000,-2186.99,0.00019726,2]
[425085592,1781475050000,-1946.34,0.00019726,2]
[425085608,1781475050000,-4648.27,0.00019726,2]
[425085596,1781475050000,-500.0,0.00019726,2]
[425085609,1781475050000,-500.0,0.00019726,2]
[425085634,1781475050000,-160.0,0.000199,3]
[425085644,1781475050000,-2000.0,0.00019985,7]
[425085638,1781475050000,-17959.33505998,0.000199,3]
[425085642,1781475050000,-160.0,0.000199,3]
[425085637,1781475050000,-38000.0,0.000199,3]
[425085639,1781475050000,-291.58999322,0.000199,3]
[425085640,1781475050000,-160.0,0.000199,3]
[425085641,1781475050000,-417.15472785,0.000199,3]
[425085645,1781475050000,-160.0,0.00019986,7]
[425085647,1781475050000,-417.15472785,0.00019986,7]
[425085650,1781475050000,-2000.0,0.00019992,7]
[425085649,1781475050000,-2000.0,0.0001999,7]
[425085648,1781475050000,-2000.0,0.00019987,7]
[425085653,1781475050000,-434908.38018567,0.0002,2]
[425085651,1781475050000,-2000.0,0.00019995,7]
[425085652,1781475050000,-2000.0,0.00019997,7]
[425085655,1781475050000,-21504.10597539,0.0002,2]
[425085654,1781475050000,-1268.88875421,0.0002,2]
[425085646,1781475050000,-160.0,0.00019986,7]
[425085636,1781475050000,-160.0,0.000199,3]
[425085643,1781475050000,-160.0,0.00019955,7]
[425085635,1781475050000,-417.15472785,0.000199,3]
[425085633,1781475050000,-769.51480695,0.000199,3]
[425085617,1781475050000,-500.0,0.00019726,2]
[425085615,1781475050000,-500.0,0.00019726,2]
[425085616,1781475050000,-500.0,0.00019726,2]
[425085614,1781475050000,-569.82043892,0.00019726,2]
[425085620,1781475050000,-769.55049531,0.00019795,2]
[425085619,1781475050000,-160.0,0.00019795,2]
[425085630,1781475050000,-556.2509992,0.00019892,2]
[425085632,1781475050000,-769.55049531,0.000199,3]
[425085622,1781475050000,-160.0,0.00019795,2]
[425085610,1781475050000,-1447.86,0.00019726,2]
[425085623,1781475050000,-160.0,0.00019795,2]
[425085656,1781475050000,-26013.99958684,0.0002,2]
[425085631,1781475050000,-160.0,0.000199,3]
[425085626,1781475050000,-10173.64797111,0.000198,2]
[425085624,1781475050000,-1391.04260186,0.000198,2]
[425085628,1781475050000,-160.0,0.00019891,3]
[425085627,1781475050000,-522.14482587,0.00019884,2]
[425085625,1781475050000,-163.81613916,0.000198,2]
[425085629,1781475050000,-38000.0,0.00019891,3]
[425085621,1781475050000,-160.0,0.00019795,2]
[425085657,1781475051000,-1610.6287127,0.0002,2]
[425085658,1781475051000,-6745.654063,0.0002,2]
[425085662,1781475317000,20000.0,0.000241,30]
[425085741,1781476232000,-500.0,0.00016438,2]
[425085740,1781476232000,-300.0,0.00016437,2]
[425085739,1781476232000,-250.0,0.00015974,2]
[425085738,1781476232000,-789.96025922,0.000135,2]
[425085743,1781476232000,-500.0,0.00016438,2]
[425085742,1781476232000,-390.3022487,0.00016438,2]
[425085744,1781476232000,-63.28531893,0.00016438,2]
[425085737,1781476232000,-5000.0,0.00012681,13]
[425085750,1781476233000,-509.50499043,0.00016438,2]
[425085748,1781476233000,-57.88394386,0.00016438,2]
[425085752,1781476233000,-500.0,0.00016438,2]
[425085751,1781476233000,-500.0,0.00016438,2]
[425085753,1781476233000,-500.0,0.00016438,2]
[425085749,1781476233000,-457.6992458,0.00016438,2]
[425085747,1781476233000,-500.0,0.00016438,2]
[425085745,1781476233000,-436.71468107,0.00016438,2]
[425085746,1781476233000,-500.0,0.00016438,2]
[425085767,1781476233000,-479.66851926,0.00016712,2]
[425085762,1781476233000,-500.0,0.00016712,2]
[425085761,1781476233000,-399.54438993,0.00016712,2]
[425085755,1781476233000,-500.0,0.00016438,2]
[425085760,1781476233000,-100.45561007,0.00016712,2]
[425085765,1781476233000,-500.0,0.00016712,2]
[425085764,1781476233000,-509.84134551,0.00016712,2]
[425085763,1781476233000,-500.0,0.00016712,2]
[425085766,1781476233000,-500.0,0.00016712,2]
[425085768,1781476233000,-20.33148074,0.00016712,2]
[425085758,1781476233000,-500.0,0.00016712,2]
[425085771,1781476233000,-59.12215224,0.00016766,2]
[425085770,1781476233000,-300.0,0.00016766,2]
[425085769,1781476233000,-300.0,0.00016766,2]
[425085756,1781476233000,-500.0,0.00016712,2]
[425085918,1781476239000,-500.0,0.00017534,2]
[425085920,1781476239000,-500.0,0.00017534,2]
[425085892,1781476239000,-500.0,0.0001726,2]
[425085910,1781476239000,-214.869012,0.00017398,2]
[425085902,1781476239000,-500.0,0.0001726,2]
[425085908,1781476239000,-1000.0,0.00017263,2]
[425085906,1781476239000,-561.8,0.00017263,2]
[425085901,1781476239000,-515.42832056,0.0001726,2]
[425085932,1781476239000,-500.0,0.00017808,2]
[425085894,1781476239000,-500.0,0.0001726,2]
[425085934,1781476239000,-500.0,0.00017808,2]
[425085922,1781476239000,-500.0,0.00017536,2]
[425085943,1781476239000,-561.8,0.0001781,2]
[425085916,1781476239000,-500.0,0.00017534,2]
[425085912,1781476239000,-500.0,0.00017534,2]
[425085904,1781476239000,-500.0,0.00017263,2]
[425085926,1781476239000,-561.8,0.00017536,2]
[425085936,1781476239000,-500.0,0.00017808,2]
[425085930,1781476239000,-500.0,0.00017808,2]
[425085928,1781476239000,-500.0,0.00017808,2]
[425085924,1781476239000,-500.0,0.00017536,2]
[425085947,1781476239000,-500.0,0.00018082,2]
[425085940,1781476239000,-500.0,0.0001781,2]
[425085914,1781476239000,-500.0,0.00017534,2]
[425085898,1781476239000,-500.0,0.0001726,2]
[425085870,1781476239000,-500.0,0.00016986,2]
[425085880,1781476239000,-500.0,0.00016986,2]
[425085850,1781476239000,-300.0,0.00016766,2]
[425085848,1781476239000,-300.0,0.00016766,2]
[425085838,1781476239000,-240.87784776,0.00016766,2]
[425085836,1781476239000,-3968.75294437,0.00012554,13]
[425085860,1781476239000,-300.0,0.00016766,2]
[425085858,1781476239000,-300.0,0.00016766,2]
[425085844,1781476239000,-300.0,0.00016766,2]
[425085852,1781476239000,-300.0,0.00016766,2]
[425085842,1781476239000,-300.0,0.00016766,2]
[425085854,1781476239000,-300.0,0.00016766,2]
[425085840,1781476239000,-300.0,0.00016766,2]
[425085846,1781476239000,-300.0,0.00016766,2]
[425085856,1781476239000,-300.0,0.00016766,2]
[425085882,1781476239000,-506.43694403,0.00016986,2]
[425085873,1781476239000,-500.0,0.00016986,2]
[425085886,1781476239000,-1692.988532,0.00017191,2]
[425085867,1781476239000,-500.0,0.00016986,2]
[425085884,1781476239000,-600.0,0.000171,2]
[425085876,1781476239000,-500.0,0.00016986,2]
[425085862,1781476239000,-300.0,0.00016766,2]
[425085865,1781476239000,-500.0,0.00016986,2]
[425085888,1781476239000,-571.53549247,0.0001726,2]
[425085878,1781476239000,-500.0,0.00016986,2]
[425085896,1781476239000,-500.0,0.0001726,2]
[425085948,1781476239000,-500.0,0.00018082,2]
[425085981,1781476239000,-500.0,0.00018223,2]
[425085950,1781476239000,-365.5134531,0.00018082,2]
[425086005,1781476239000,-500.0,0.00018415,2]
[425086023,1781476239000,-500.0,0.00018415,2]
[425086025,1781476239000,-557.12535267,0.00018415,2]
[425086027,1781476239000,-510.51321081,0.00018415,2]
[425086011,1781476239000,-500.0,0.00018415,2]
[425086031,1781476239000,-4650.73,0.00018415,2]
[425086019,1781476239000,-630.45,0.00018415,2]
[425086015,1781476239000,-503.48309798,0.00018415,2]
[425086013,1781476239000,-500.0,0.00018415,2]
[425086017,1781476239000,-505.10723467,0.00018415,2]
[425086021,1781476239000,-500.0,0.00018415,2]
[425086035,1781476239000,-500.0,0.00018415,2]
[425086033,1781476239000,-500.0,0.00018415,2]
[425086037,1781476239000,-1967.44,0.00018415,2]
[425086039,1781476239000,-500.0,0.00018415,2]
[425086041,1781476239000,-504.64464479,0.00018415,2]
[425086043,1781476239000,-1520.42,0.00018415,2]
[425086047,1781476239000,-2266.87,0.00018415,2]
[425086045,1781476239000,-500.0,0.00018415,2]
[425086049,1781476239000,-507.75165868,0.00018415,2]
[425086052,1781476239000,-500.0,0.00018415,2]
[425086054,1781476239000,-510.07116052,0.00018415,2]
[425085938,1781476239000,-500.0,0.0001781,2]
[425086009,1781476239000,-500.0,0.00018415,2]
[425086007,1781476239000,-500.0,0.00018415,2]
[425086029,1781476239000,-515.67435196,0.00018415,2]
[425086003,1781476239000,-561.8,0.00018358,2]
[425085957,1781476239000,-500.0,0.00018084,2]
[425085945,1781476239000,-420.0,0.00017963,2]
[425085953,1781476239000,-500.0,0.00018082,2]
[425085955,1781476239000,-500.0,0.00018082,2]
[425085959,1781476239000,-505.6022915,0.00018084,2]
[425085961,1781476239000,-561.8,0.00018084,2]
[425086001,1781476239000,-500.0,0.00018356,2]
[425085983,1781476239000,-500.0,0.00018223,2]
[425085964,1781476239000,-500.0,0.00018223,2]
[425085968,1781476239000,-500.0,0.00018223,2]
[425085970,1781476239000,-500.0,0.00018223,2]
[425085973,1781476239000,-500.0,0.00018223,2]
[425085977,1781476239000,-500.0,0.00018223,2]
[425085979,1781476239000,-219.01418453,0.00018223,2]
[425085967,1781476239000,-500.0,0.00018223,2]
[425085999,1781476239000,-500.0,0.00018356,2]
[425085995,1781476239000,-500.0,0.00018356,2]
[425085989,1781476239000,-186.0,0.00018224,2]
[425085991,1781476239000,-445.0,0.00018224,2]
[425085993,1781476239000,-500.0,0.00018275,2]
[425085997,1781476239000,-500.0,0.00018356,2]
[425085987,1781476239000,-957.0,0.00018224,2]
[425085985,1781476239000,-383.01524332,0.00018223,2]
[425085975,1781476239000,-500.0,0.00018223,2]
[425085963,1781476239000,-500.0,0.00018223,2]
[425086063,1781476240000,-511.40869233,0.00018415,2]
[425086078,1781476240000,-500.0,0.0001863,2]
[425086069,1781476240000,-1481.84,0.00018415,2]
[425086072,1781476240000,-151.0,0.00018567,2]
[425086080,1781476240000,-500.0,0.0001863,2]
[425086067,1781476240000,-4869.86,0.00018415,2]
[425086058,1781476240000,-2174.42,0.00018415,2]
[425086065,1781476240000,-500.0,0.00018415,2]
[425086062,1781476240000,-639.65,0.00018415,2]
[425086060,1781476240000,-1956.3,0.00018415,2]
[425086055,1781476240000,-500.0,0.00018415,2]
[425086074,1781476240000,-253.20900564,0.00018578,2]
[425086076,1781476240000,-500.0,0.0001863,2]